[Event "*** SCC Grand Prix: Titled Tuesday Blitz"]
[Site "Chess.com"]
[Date "2020.07.07"]
[Round "5"]
[White "totoro9"]
[Black "GMJustin"]
[Result "1-0"]
[WhiteElo "2314"]
[BlackElo "2253"]
[TimeControl "180+1"]
[EndTime "10:56:13 PDT"]
[Termination "totoro9 won on time"]

1. e4 {[%clk 0:03:00.9]} 1... e5 {[%clk 0:02:52.4]} 2. Nf3 {[%clk 0:02:58.9]}
2... Nc6 {[%clk 0:02:52.2]} 3. Bc4 {[%clk 0:02:58.6]} 3... Nf6 {[%clk
0:02:51.6]} 4. d3 {[%clk 0:02:58.8]} 4... Be7 {[%clk 0:02:50.4]} 5. O-O {[%clk
0:02:58.2]} 5... O-O {[%clk 0:02:50]} 6. Re1 {[%clk 0:02:58.9]} 6... d6 {[%clk
0:02:50.1]} 7. a4 {[%clk 0:02:57.4]} 7... a5 {[%clk 0:02:50.1]} 8. Nbd2 {[%clk
0:02:38.1]} 8... Qd7 {[%clk 0:02:29.5]} 9. Nf1 {[%clk 0:02:36.2]} 9... Nd8
{[%clk 0:02:23.5]} 10. c3 {[%clk 0:02:33.2]} 10... c6 {[%clk 0:02:13.8]} 11. Bb3
{[%clk 0:02:32.7]} 11... Qc7 {[%clk 0:02:06.3]} 12. Ng3 {[%clk 0:02:28.6]} 12...
g6 {[%clk 0:01:59.9]} 13. d4 {[%clk 0:02:27.2]} 13... Ne6 {[%clk 0:01:49.9]} 14.
h3 {[%clk 0:02:11.2]} 14... Nf4 {[%clk 0:01:37.4]} 15. Bxf4 {[%clk 0:02:09.3]}
15... exf4 {[%clk 0:01:37.2]} 16. Nf1 {[%clk 0:02:09.7]} 16... d5 {[%clk
0:01:30.9]} 17. e5 {[%clk 0:01:54.2]} 17... Ne4 {[%clk 0:01:30.1]} 18. N3d2
{[%clk 0:01:51.1]} 18... Nxd2 {[%clk 0:01:11.7]} 19. Qxd2 {[%clk 0:01:43.9]}
19... f3 {[%clk 0:01:08.7]} 20. Ng3 {[%clk 0:01:40]} 20... fxg2 {[%clk
0:01:04.9]} 21. Kxg2 {[%clk 0:01:39.3]} 21... f6 {[%clk 0:01:00.7]} 22. c4
{[%clk 0:01:25.1]} 22... fxe5 {[%clk 0:00:53.6]} 23. cxd5 {[%clk 0:01:23.8]}
23... cxd5 {[%clk 0:00:48.1]} 24. Bxd5+ {[%clk 0:01:23.2]} 24... Kg7 {[%clk
0:00:46.5]} 25. Rxe5 {[%clk 0:01:18.7]} 25... Bd6 {[%clk 0:00:40.4]} 26. Re2
{[%clk 0:00:45]} 26... Bf4 {[%clk 0:00:33.7]} 27. Qd3 {[%clk 0:00:36.6]} 27...
Qd6 {[%clk 0:00:29.2]} 28. Bf3 {[%clk 0:00:32.3]} 28... Bd7 {[%clk 0:00:26.7]}
29. Ne4 {[%clk 0:00:28.5]} 29... Qe6 {[%clk 0:00:19.7]} 30. Bg4 {[%clk
0:00:23.9]} 30... Qd5 {[%clk 0:00:19.2]} 31. Bxd7 {[%clk 0:00:23.4]} 31... Qxd7
{[%clk 0:00:18.9]} 32. Nc5 {[%clk 0:00:22.2]} 32... Qd5+ {[%clk 0:00:18.5]} 33.
Qe4 {[%clk 0:00:22]} 33... Rad8 {[%clk 0:00:16.3]} 34. Qxd5 {[%clk 0:00:20]}
34... Rxd5 {[%clk 0:00:16.2]} 35. Ne6+ {[%clk 0:00:20.6]} 35... Kg8 {[%clk
0:00:14.9]} 36. Nxf8 {[%clk 0:00:20.7]} 36... Kxf8 {[%clk 0:00:14.9]} 37. Rd1
{[%clk 0:00:21.2]} 37... Kf7 {[%clk 0:00:11.7]} 38. Rc2 {[%clk 0:00:20.7]} 38...
Bd6 {[%clk 0:00:11.2]} 39. Rc8 {[%clk 0:00:20.2]} 39... Rg5+ {[%clk 0:00:09.6]}
40. Kf3 {[%clk 0:00:20.4]} 40... h6 {[%clk 0:00:07.9]} 41. Ra8 {[%clk
0:00:19.1]} 41... Ke6 {[%clk 0:00:07.3]} 42. Ra7 {[%clk 0:00:19.3]} 42... b6
{[%clk 0:00:05.9]} 43. Rb7 {[%clk 0:00:19.5]} 43... Rf5+ {[%clk 0:00:03.9]} 44.
Ke4 {[%clk 0:00:19.8]} 44... Rxf2 {[%clk 0:00:03.6]} 45. Rxb6 {[%clk 0:00:20.3]}
45... g5 {[%clk 0:00:02]} 46. Re1 {[%clk 0:00:18.9]} 1-0

[Event "*** SCC Grand Prix: Titled Tuesday Blitz"]
[Site "Chess.com"]
[Date "2020.07.07"]
[Round "5"]
[White "JonahWillow"]
[Black "RestartingChess"]
[Result "1-0"]
[WhiteElo "2689"]
[BlackElo "2494"]
[TimeControl "180+1"]
[EndTime "10:56:15 PDT"]
[Termination "JonahWillow won by resignation"]

1. e4 {[%clk 0:03:00.9]} 1... d5 {[%clk 0:02:55.2]} 2. exd5 {[%clk 0:02:59.4]}
2... Qxd5 {[%clk 0:02:56.1]} 3. Nc3 {[%clk 0:03:00.3]} 3... Qd6 {[%clk
0:02:55.4]} 4. d4 {[%clk 0:02:48.7]} 4... Nf6 {[%clk 0:02:55.7]} 5. Nf3 {[%clk
0:02:47.8]} 5... Nc6 {[%clk 0:02:56]} 6. d5 {[%clk 0:02:23.9]} 6... Nb4 {[%clk
0:02:47.9]} 7. Bc4 {[%clk 0:02:20]} 7... Bf5 {[%clk 0:02:46.1]} 8. Nd4 {[%clk
0:02:16.2]} 8... Qe5+ {[%clk 0:02:41.2]} 9. Be3 {[%clk 0:02:11.2]} 9... O-O-O
{[%clk 0:02:38.7]} 10. Nxf5 {[%clk 0:01:32]} 10... Qxf5 {[%clk 0:02:36.9]} 11.
O-O {[%clk 0:01:32.1]} 11... Nbxd5 {[%clk 0:02:17.9]} 12. Nxd5 {[%clk
0:01:30.3]} 12... Nxd5 {[%clk 0:02:17.3]} 13. Bd3 {[%clk 0:01:23.6]} 13... Qf6
{[%clk 0:02:09]} 14. Bxa7 {[%clk 0:01:23.4]} 14... e6 {[%clk 0:01:53.6]} 15. a4
{[%clk 0:01:17.3]} 15... Nb4 {[%clk 0:01:43.9]} 16. a5 {[%clk 0:01:13.2]} 16...
Bd6 {[%clk 0:01:09.6]} 17. a6 {[%clk 0:01:06.2]} 17... bxa6 {[%clk 0:01:08.1]}
18. Qg4 {[%clk 0:00:38.6]} 18... Qf4 {[%clk 0:00:42.3]} 19. Qxf4 {[%clk
0:00:36.3]} 19... Bxf4 {[%clk 0:00:43.2]} 20. Bxa6+ {[%clk 0:00:37.1]} 20...
Nxa6 {[%clk 0:00:43.7]} 21. Rxa6 {[%clk 0:00:38]} 21... Kb7 {[%clk 0:00:44.5]}
22. Ra4 {[%clk 0:00:34.4]} 22... Be5 {[%clk 0:00:39]} 23. Be3 {[%clk 0:00:30.9]}
23... Ra8 {[%clk 0:00:32.8]} 24. Rb4+ {[%clk 0:00:31.3]} 24... Kc8 {[%clk
0:00:31.6]} 25. Rd1 {[%clk 0:00:29.7]} 25... Rd8 {[%clk 0:00:31.5]} 26. Rxd8+
{[%clk 0:00:28.2]} 26... Kxd8 {[%clk 0:00:32.4]} 27. f4 {[%clk 0:00:29]} 27...
Bd6 {[%clk 0:00:32.3]} 28. Rb7 {[%clk 0:00:23.4]} 28... Kc8 {[%clk 0:00:32.1]}
29. Rb3 {[%clk 0:00:23.2]} 29... Ra1+ {[%clk 0:00:32.2]} 30. Kf2 {[%clk
0:00:22.5]} 30... Kd7 {[%clk 0:00:32.9]} 31. Rb7 {[%clk 0:00:19.4]} 31... Rb1
{[%clk 0:00:32.7]} 32. Rb3 {[%clk 0:00:19]} 32... h6 {[%clk 0:00:30.2]} 33. g3
{[%clk 0:00:19.3]} 33... Kc6 {[%clk 0:00:25.2]} 34. Kf3 {[%clk 0:00:19.7]} 34...
Rf1+ {[%clk 0:00:24.7]} 35. Ke4 {[%clk 0:00:19.6]} 35... Rh1 {[%clk 0:00:24.7]}
36. Rc3+ {[%clk 0:00:18.1]} 36... Kd7 {[%clk 0:00:24.9]} 37. h4 {[%clk
0:00:17.6]} 37... f5+ {[%clk 0:00:24.3]} 38. Kf3 {[%clk 0:00:17.9]} 38... Rf1+
{[%clk 0:00:24.1]} 39. Ke2 {[%clk 0:00:17.7]} 39... Rh1 {[%clk 0:00:24]} 40. Bd4
{[%clk 0:00:16.5]} 40... Rh2+ {[%clk 0:00:24.3]} 41. Kf3 {[%clk 0:00:16.2]}
41... g6 {[%clk 0:00:23.1]} 42. Bg1 {[%clk 0:00:15.3]} 42... Rd2 {[%clk
0:00:22.7]} 43. Be3 {[%clk 0:00:15.3]} 43... Rd1 {[%clk 0:00:22.9]} 44. Rb3
{[%clk 0:00:15.2]} 44... e5 {[%clk 0:00:21.4]} 45. fxe5 {[%clk 0:00:14]} 45...
Bxe5 {[%clk 0:00:22]} 46. Bxh6 {[%clk 0:00:14.7]} 46... Rg1 {[%clk 0:00:18.9]}
47. Bf4 {[%clk 0:00:14.1]} 47... Bd6 {[%clk 0:00:13.3]} 48. Rd3 {[%clk
0:00:13.5]} 48... Ke6 {[%clk 0:00:13.6]} 49. Bxd6 {[%clk 0:00:12.9]} 49... cxd6
{[%clk 0:00:14.5]} 50. b4 {[%clk 0:00:13.3]} 50... Rb1 {[%clk 0:00:14.9]} 51.
Rb3 {[%clk 0:00:13.2]} 51... Rxb3+ {[%clk 0:00:13.1]} 52. cxb3 {[%clk
0:00:13.3]} 52... Kd5 {[%clk 0:00:13.8]} 53. Ke3 {[%clk 0:00:12.9]} 53... Kc6
{[%clk 0:00:14.2]} 54. Kd4 {[%clk 0:00:13.7]} 54... Kb5 {[%clk 0:00:15.1]} 55.
Kd5 {[%clk 0:00:14.2]} 55... Kxb4 {[%clk 0:00:15.5]} 56. Kxd6 {[%clk 0:00:14.9]}
56... Kxb3 {[%clk 0:00:16.4]} 57. Ke5 {[%clk 0:00:15.6]} 57... Kc3 {[%clk
0:00:17.3]} 58. Kf6 {[%clk 0:00:16.3]} 58... Kd4 {[%clk 0:00:18.2]} 59. Kxg6
{[%clk 0:00:16.9]} 59... Ke5 {[%clk 0:00:19.1]} 60. h5 {[%clk 0:00:17.4]} 60...
f4 {[%clk 0:00:19.7]} 61. gxf4+ {[%clk 0:00:18.3]} 61... Kxf4 {[%clk 0:00:20.6]}
62. h6 {[%clk 0:00:18.9]} 1-0

[Event "*** SCC Grand Prix: Titled Tuesday Blitz"]
[Site "Chess.com"]
[Date "2020.07.07"]
[Round "5"]
[White "monalize"]
[Black "MathiasWomacka"]
[Result "1/2-1/2"]
[WhiteElo "2263"]
[BlackElo "2427"]
[TimeControl "180+1"]
[EndTime "10:56:16 PDT"]
[Termination "Game drawn by agreement"]

1. e4 {[%clk 0:03:00.9]} 1... c5 {[%clk 0:03:00.1]} 2. Nf3 {[%clk 0:02:59.5]}
2... d6 {[%clk 0:03:00.2]} 3. d4 {[%clk 0:02:59.3]} 3... cxd4 {[%clk 0:03:01.1]}
4. Qxd4 {[%clk 0:02:59]} 4... Nc6 {[%clk 0:02:59.7]} 5. Qe3 {[%clk 0:02:58.7]}
5... Nf6 {[%clk 0:02:58.5]} 6. h3 {[%clk 0:02:58.8]} 6... g6 {[%clk 0:02:58.5]}
7. Be2 {[%clk 0:02:58.8]} 7... Bg7 {[%clk 0:02:58.6]} 8. O-O {[%clk 0:02:58.6]}
8... O-O {[%clk 0:02:58.4]} 9. Rd1 {[%clk 0:02:58.4]} 9... Bd7 {[%clk
0:02:42.6]} 10. c4 {[%clk 0:02:57.4]} 10... a6 {[%clk 0:02:40.1]} 11. Nc3 {[%clk
0:02:56.8]} 11... Rb8 {[%clk 0:02:33.6]} 12. Rb1 {[%clk 0:02:53.6]} 12... Qa5
{[%clk 0:02:23]} 13. a3 {[%clk 0:02:44.4]} 13... b5 {[%clk 0:01:57.4]} 14. b4
{[%clk 0:02:40.1]} 14... Qc7 {[%clk 0:01:48]} 15. cxb5 {[%clk 0:02:31.7]} 15...
axb5 {[%clk 0:01:48.1]} 16. Nxb5 {[%clk 0:02:29.6]} 16... Qb7 {[%clk 0:01:48]}
17. Nc3 {[%clk 0:02:23.3]} 17... Rfc8 {[%clk 0:01:44.2]} 18. Bb2 {[%clk
0:02:21.5]} 18... Be6 {[%clk 0:01:20.3]} 19. Nd5 {[%clk 0:02:05.7]} 19... Bxd5
{[%clk 0:01:13.2]} 20. exd5 {[%clk 0:02:05.1]} 20... Na7 {[%clk 0:01:13.7]} 21.
Qd3 {[%clk 0:01:47.7]} 21... Nb5 {[%clk 0:01:07.7]} 22. Nh2 {[%clk 0:01:31.4]}
22... Nc7 {[%clk 0:01:04.4]} 23. Bf3 {[%clk 0:01:31]} 23... Nd7 {[%clk
0:01:01.8]} 24. Bxg7 {[%clk 0:01:29.6]} 24... Kxg7 {[%clk 0:01:02.7]} 25. Qd4+
{[%clk 0:01:20.5]} 25... Ne5 {[%clk 0:00:55.3]} 26. a4 {[%clk 0:01:19]} 26...
Kg8 {[%clk 0:00:48.6]} 27. Be2 {[%clk 0:01:18.6]} 27... Ne8 {[%clk 0:00:41.7]}
28. a5 {[%clk 0:01:12.1]} 28... Rc2 {[%clk 0:00:39.5]} 29. Rd2 {[%clk
0:01:06.2]} 29... Qc7 {[%clk 0:00:35.5]} 30. a6 {[%clk 0:00:54.6]} 30... Rxd2
{[%clk 0:00:27.1]} 31. Qxd2 {[%clk 0:00:53.7]} 31... Qb6 {[%clk 0:00:27.3]} 32.
b5 {[%clk 0:00:51.3]} 32... Nf6 {[%clk 0:00:21.4]} 33. Nf3 {[%clk 0:00:45.3]}
33... Ne4 {[%clk 0:00:19.9]} 34. Qe3 {[%clk 0:00:44.8]} 34... Nxf3+ {[%clk
0:00:16.7]} 35. Bxf3 {[%clk 0:00:41.6]} 35... Nc5 {[%clk 0:00:14.5]} 36. Be4
{[%clk 0:00:38.2]} 36... Qa5 {[%clk 0:00:11.2]} 37. Kh2 {[%clk 0:00:32.8]} 37...
Rxb5 {[%clk 0:00:10.5]} 38. Rxb5 {[%clk 0:00:31.9]} 38... Qxb5 {[%clk
0:00:11.4]} 39. a7 {[%clk 0:00:31.4]} 39... Qa5 {[%clk 0:00:11.1]} 40. Bxg6
{[%clk 0:00:25.2]} 40... Qxa7 {[%clk 0:00:07.2]} 41. Bh5 {[%clk 0:00:22]} 41...
Qa4 {[%clk 0:00:05.1]} 42. Qg5+ {[%clk 0:00:20.1]} 42... Kf8 {[%clk 0:00:05.1]}
43. Bf3 {[%clk 0:00:19.5]} 43... Qd4 {[%clk 0:00:03.7]} 44. Qf5 {[%clk
0:00:18.1]} 44... Qe5+ {[%clk 0:00:03.5]} 45. Qxe5 {[%clk 0:00:18.2]} 45... dxe5
{[%clk 0:00:04.4]} 46. Kg3 {[%clk 0:00:18.6]} 46... Kg7 {[%clk 0:00:04.4]} 47.
Bg4 {[%clk 0:00:17.8]} 47... Kg6 {[%clk 0:00:03.3]} 1/2-1/2

[Event "*** SCC Grand Prix: Titled Tuesday Blitz"]
[Site "Chess.com"]
[Date "2020.07.07"]
[Round "5"]
[White "Grischuk"]
[Black "Mykola-Bortnyk"]
[Result "1-0"]
[WhiteElo "3059"]
[BlackElo "2845"]
[TimeControl "180+1"]
[EndTime "10:56:17 PDT"]
[Termination "Grischuk won by resignation"]

1. e4 {[%clk 0:02:58.4]} 1... Nf6 {[%clk 0:03:00.1]} 2. e5 {[%clk 0:02:58.6]}
2... Nd5 {[%clk 0:03:00.1]} 3. d4 {[%clk 0:02:59.5]} 3... d6 {[%clk 0:03:00.7]}
4. Nf3 {[%clk 0:02:59.8]} 4... Nc6 {[%clk 0:03:01.3]} 5. Bb5 {[%clk 0:02:56.7]}
5... Bd7 {[%clk 0:02:53.4]} 6. Bc4 {[%clk 0:02:27.4]} 6... e6 {[%clk 0:02:35.1]}
7. O-O {[%clk 0:02:26.4]} 7... Nb6 {[%clk 0:02:33]} 8. Bb3 {[%clk 0:02:19.8]}
8... dxe5 {[%clk 0:02:32]} 9. dxe5 {[%clk 0:02:14.7]} 9... Na5 {[%clk
0:02:31.4]} 10. Qe2 {[%clk 0:02:14.7]} 10... c5 {[%clk 0:02:19.7]} 11. c4 {[%clk
0:01:58]} 11... Be7 {[%clk 0:02:12]} 12. Nc3 {[%clk 0:01:56.5]} 12... Bc6 {[%clk
0:02:07.3]} 13. Bf4 {[%clk 0:01:51.8]} 13... Nxb3 {[%clk 0:02:06.9]} 14. axb3
{[%clk 0:01:51.7]} 14... Qc7 {[%clk 0:02:00.7]} 15. Ne4 {[%clk 0:01:48.1]} 15...
Bxe4 {[%clk 0:02:00.9]} 16. Qxe4 {[%clk 0:01:49]} 16... O-O {[%clk 0:01:57.7]}
17. Rfd1 {[%clk 0:01:44.8]} 17... a6 {[%clk 0:01:51.3]} 18. Ng5 {[%clk
0:01:36.8]} 18... g6 {[%clk 0:01:31]} 19. h4 {[%clk 0:01:36.2]} 19... Rfd8
{[%clk 0:01:18.8]} 20. Nf3 {[%clk 0:01:36.3]} 20... Qc6 {[%clk 0:01:04.5]} 21.
Rxd8+ {[%clk 0:01:31.2]} 21... Bxd8 {[%clk 0:01:04.3]} 22. Qxc6 {[%clk
0:01:31.4]} 22... bxc6 {[%clk 0:01:04.9]} 23. Be3 {[%clk 0:01:28.5]} 23... Be7
{[%clk 0:01:04]} 24. Ng5 {[%clk 0:01:01.5]} 24... Nd7 {[%clk 0:01:02.4]} 25. f4
{[%clk 0:01:01.2]} 25... Bxg5 {[%clk 0:01:02.2]} 26. hxg5 {[%clk 0:01:02.1]}
26... Kf8 {[%clk 0:01:00.6]} 27. Kf2 {[%clk 0:00:52.1]} 27... Ke7 {[%clk
0:01:00.2]} 28. Ke2 {[%clk 0:00:52.2]} 28... Rb8 {[%clk 0:00:49.7]} 29. Ra3
{[%clk 0:00:51.9]} 29... Rb6 {[%clk 0:00:39.5]} 30. Kd3 {[%clk 0:00:51.4]} 30...
Kf8 {[%clk 0:00:38.1]} 31. Kc3 {[%clk 0:00:50.6]} 31... Kg7 {[%clk 0:00:38.2]}
32. Ra5 {[%clk 0:00:49.4]} 32... h6 {[%clk 0:00:36.1]} 33. Bxc5 {[%clk
0:00:41.4]} 33... Nxc5 {[%clk 0:00:36.4]} 34. Rxc5 {[%clk 0:00:42.3]} 34... hxg5
{[%clk 0:00:37.1]} 35. fxg5 {[%clk 0:00:42.8]} 35... Kf8 {[%clk 0:00:37.6]} 36.
b4 {[%clk 0:00:39]} 36... Ke7 {[%clk 0:00:37.6]} 37. Ra5 {[%clk 0:00:39.3]}
37... Kd7 {[%clk 0:00:33.6]} 38. c5 {[%clk 0:00:37.1]} 38... Rb7 {[%clk
0:00:34.1]} 39. Rxa6 {[%clk 0:00:37.7]} 39... Kc7 {[%clk 0:00:35]} 40. Kc4
{[%clk 0:00:36.4]} 40... Kd7 {[%clk 0:00:34.9]} 41. Ra5 {[%clk 0:00:34.9]} 41...
Kc7 {[%clk 0:00:35]} 42. b5 {[%clk 0:00:34.4]} 42... cxb5+ {[%clk 0:00:34.3]}
43. Rxb5 {[%clk 0:00:35.3]} 43... Ra7 {[%clk 0:00:33.7]} 44. b4 {[%clk
0:00:34.8]} 44... Ra2 {[%clk 0:00:33.6]} 45. Ra5 {[%clk 0:00:35.2]} 45... Rxg2
{[%clk 0:00:31.5]} 46. Ra7+ {[%clk 0:00:35.3]} 46... Kb8 {[%clk 0:00:31.7]} 47.
Rxf7 {[%clk 0:00:35.5]} 47... Rxg5 {[%clk 0:00:31.1]} 48. Kb5 {[%clk 0:00:34.5]}
48... Rg4 {[%clk 0:00:31.5]} 49. c6 {[%clk 0:00:27.6]} 49... Re4 {[%clk
0:00:29.9]} 50. Kc5 {[%clk 0:00:27.3]} 50... Rxe5+ {[%clk 0:00:22.8]} 51. Kb6
{[%clk 0:00:27.5]} 51... Rf5 {[%clk 0:00:23.4]} 52. Rb7+ {[%clk 0:00:23.7]}
52... Kc8 {[%clk 0:00:19.9]} 53. Ra7 {[%clk 0:00:24.6]} 53... Kd8 {[%clk
0:00:16.6]} 54. Ra8+ {[%clk 0:00:23.7]} 1-0

[Event "*** SCC Grand Prix: Titled Tuesday Blitz"]
[Site "Chess.com"]
[Date "2020.07.07"]
[Round "5"]
[White "sri5996"]
[Black "Semetey"]
[Result "0-1"]
[WhiteElo "2291"]
[BlackElo "2472"]
[TimeControl "180+1"]
[EndTime "10:56:18 PDT"]
[Termination "Semetey won by resignation"]

1. d4 {[%clk 0:03:00.9]} 1... Nf6 {[%clk 0:02:57.5]} 2. Bf4 {[%clk 0:02:58.9]}
2... d5 {[%clk 0:02:56.6]} 3. Nc3 {[%clk 0:02:57.2]} 3... c6 {[%clk 0:02:45.8]}
4. e3 {[%clk 0:02:43.4]} 4... Bf5 {[%clk 0:02:35.6]} 5. f3 {[%clk 0:02:39.6]}
5... e6 {[%clk 0:02:29.8]} 6. g4 {[%clk 0:02:35.1]} 6... Bg6 {[%clk 0:02:29.8]}
7. h4 {[%clk 0:02:35.5]} 7... h6 {[%clk 0:02:29]} 8. Bd3 {[%clk 0:02:29.6]} 8...
Bxd3 {[%clk 0:02:28.4]} 9. Qxd3 {[%clk 0:02:29]} 9... Nbd7 {[%clk 0:02:19.2]}
10. Nge2 {[%clk 0:02:17.9]} 10... Qb6 {[%clk 0:02:10.4]} 11. Kf2 {[%clk
0:01:53.9]} 11... a6 {[%clk 0:02:07.6]} 12. Rag1 {[%clk 0:01:36.7]} 12... c5
{[%clk 0:02:01.7]} 13. dxc5 {[%clk 0:01:31]} 13... Nxc5 {[%clk 0:01:58.7]} 14.
Qd4 {[%clk 0:01:29.8]} 14... O-O-O {[%clk 0:01:54.5]} 15. a4 {[%clk 0:00:57.2]}
15... Bd6 {[%clk 0:01:33.4]} 16. b4 {[%clk 0:00:46]} 16... Ncd7 {[%clk
0:01:31.9]} 17. Bxd6 {[%clk 0:00:39.5]} 17... Qxd6 {[%clk 0:01:31.1]} 18. b5
{[%clk 0:00:30.5]} 18... a5 {[%clk 0:01:22.3]} 19. e4 {[%clk 0:00:30.7]} 19...
e5 {[%clk 0:01:11.9]} 20. Qa7 {[%clk 0:00:30.7]} 20... d4 {[%clk 0:01:00.1]} 21.
Nd5 {[%clk 0:00:26.7]} 21... Nxd5 {[%clk 0:00:59.4]} 22. exd5 {[%clk 0:00:22.5]}
22... Qb6 {[%clk 0:00:59.1]} 23. Qxb6 {[%clk 0:00:14.3]} 23... Nxb6 {[%clk
0:01:00]} 24. f4 {[%clk 0:00:14.1]} 24... f6 {[%clk 0:00:54.1]} 25. fxe5 {[%clk
0:00:10.7]} 25... fxe5 {[%clk 0:00:55]} 26. Ng3 {[%clk 0:00:11.3]} 26... Rhf8+
{[%clk 0:00:51.3]} 27. Kg2 {[%clk 0:00:11.3]} 27... Nxd5 {[%clk 0:00:51]} 28.
Nf5 {[%clk 0:00:11.7]} 28... Rd7 {[%clk 0:00:42.7]} 29. Re1 {[%clk 0:00:11.7]}
29... Re8 {[%clk 0:00:31.4]} 30. Kg3 {[%clk 0:00:12]} 30... Nc3 {[%clk
0:00:25.4]} 31. Rhf1 {[%clk 0:00:08.9]} 31... b6 {[%clk 0:00:21.6]} 32. Rf3
{[%clk 0:00:08.4]} 32... Nxa4 {[%clk 0:00:21.4]} 33. Rd3 {[%clk 0:00:07.3]}
33... Nc3 {[%clk 0:00:20.9]} 34. Nxd4 {[%clk 0:00:07.1]} 34... Nd5 {[%clk
0:00:15]} 35. Nc6 {[%clk 0:00:06.9]} 35... e4 {[%clk 0:00:15.2]} 36. Rd4 {[%clk
0:00:05.7]} 36... Nf6 {[%clk 0:00:13.5]} 37. Rxd7 {[%clk 0:00:04.3]} 37... Kxd7
{[%clk 0:00:14.4]} 38. g5 {[%clk 0:00:04.6]} 38... hxg5 {[%clk 0:00:14.2]} 39.
hxg5 {[%clk 0:00:05.5]} 39... Nd5 {[%clk 0:00:12.8]} 40. Kg4 {[%clk 0:00:05.1]}
40... e3 {[%clk 0:00:12.2]} 41. Kf3 {[%clk 0:00:05.2]} 41... Kd6 {[%clk
0:00:11.3]} 42. Ke2 {[%clk 0:00:05.3]} 42... Kc5 {[%clk 0:00:11.4]} 43. Rd1
{[%clk 0:00:05.2]} 43... Nc3+ {[%clk 0:00:11.1]} 44. Ke1 {[%clk 0:00:04.9]}
44... Nxd1 {[%clk 0:00:12]} 45. Kxd1 {[%clk 0:00:04.8]} 45... Kxb5 {[%clk
0:00:12.7]} 46. Nd4+ {[%clk 0:00:04.9]} 46... Kc4 {[%clk 0:00:12.9]} 47. Ne2
{[%clk 0:00:05.4]} 47... a4 {[%clk 0:00:12.7]} 0-1

[Event "*** SCC Grand Prix: Titled Tuesday Blitz"]
[Site "Chess.com"]
[Date "2020.07.07"]
[Round "5"]
[White "Anton_Demchenko"]
[Black "AndrewMaco"]
[Result "0-1"]
[WhiteElo "2855"]
[BlackElo "2634"]
[TimeControl "180+1"]
[EndTime "10:56:19 PDT"]
[Termination "AndrewMaco won on time"]

1. d4 {[%clk 0:03:00.9]} 1... Nf6 {[%clk 0:02:58.4]} 2. Nf3 {[%clk 0:03:01.1]}
2... d5 {[%clk 0:02:57.9]} 3. Bf4 {[%clk 0:03:01.7]} 3... e6 {[%clk 0:02:58.3]}
4. e3 {[%clk 0:03:02]} 4... Bd6 {[%clk 0:02:58.9]} 5. Ne5 {[%clk 0:03:02.7]}
5... O-O {[%clk 0:02:56.1]} 6. Nd2 {[%clk 0:03:02.9]} 6... c5 {[%clk 0:02:56.2]}
7. c3 {[%clk 0:03:03.4]} 7... Qc7 {[%clk 0:02:56.7]} 8. Bd3 {[%clk 0:03:03.5]}
8... Nbd7 {[%clk 0:02:54.3]} 9. Ndf3 {[%clk 0:03:03.7]} 9... Ne4 {[%clk
0:02:54.7]} 10. O-O {[%clk 0:02:56.7]} 10... b6 {[%clk 0:02:44.3]} 11. Rc1
{[%clk 0:02:50.9]} 11... Bb7 {[%clk 0:02:03.6]} 12. c4 {[%clk 0:02:37.8]} 12...
dxc4 {[%clk 0:01:57.8]} 13. Bxe4 {[%clk 0:02:27.5]} 13... Bxe4 {[%clk
0:01:56.9]} 14. Nxd7 {[%clk 0:02:27.7]} 14... Bxf3 {[%clk 0:01:20.5]} 15. gxf3
{[%clk 0:02:14.3]} 15... Rfd8 {[%clk 0:00:46.5]} 16. Bxd6 {[%clk 0:02:04.9]}
16... Qxd6 {[%clk 0:00:39.4]} 17. Ne5 {[%clk 0:02:04.7]} 17... b5 {[%clk
0:00:36.8]} 18. f4 {[%clk 0:01:33.1]} 18... f6 {[%clk 0:00:32.5]} 19. Nf3 {[%clk
0:01:32.8]} 19... Qd5 {[%clk 0:00:32.7]} 20. Qe2 {[%clk 0:01:18.8]} 20... cxd4
{[%clk 0:00:27.9]} 21. Nxd4 {[%clk 0:01:17.2]} 21... e5 {[%clk 0:00:27.9]} 22.
fxe5 {[%clk 0:01:11.3]} 22... fxe5 {[%clk 0:00:28.8]} 23. Nf5 {[%clk 0:01:11.7]}
23... Qe4 {[%clk 0:00:27.2]} 24. Ng3 {[%clk 0:01:07.8]} 24... Qg6 {[%clk
0:00:25.7]} 25. b3 {[%clk 0:01:05.8]} 25... cxb3 {[%clk 0:00:20.3]} 26. axb3
{[%clk 0:01:06.7]} 26... a6 {[%clk 0:00:21.2]} 27. Rc5 {[%clk 0:00:58.1]} 27...
Rd3 {[%clk 0:00:19.6]} 28. Rxe5 {[%clk 0:00:46.7]} 28... Rxb3 {[%clk 0:00:19.7]}
29. Qa2 {[%clk 0:00:46.2]} 29... Qf7 {[%clk 0:00:20]} 30. Rf5 {[%clk 0:00:42.1]}
30... Qc4 {[%clk 0:00:18.1]} 31. Rf4 {[%clk 0:00:27.2]} 31... Qe6 {[%clk
0:00:18.3]} 32. Nf5 {[%clk 0:00:24.4]} 32... Rxe3 {[%clk 0:00:16.5]} 33. Qxe6+
{[%clk 0:00:14.5]} 33... Rxe6 {[%clk 0:00:17.4]} 34. Rc1 {[%clk 0:00:15.3]}
34... a5 {[%clk 0:00:15.9]} 35. Rg4 {[%clk 0:00:08.2]} 35... g6 {[%clk
0:00:14.3]} 36. Rc7 {[%clk 0:00:07.2]} 36... a4 {[%clk 0:00:11.5]} 37. Nh6+
{[%clk 0:00:07.5]} 37... Kh8 {[%clk 0:00:11]} 38. Rd4 {[%clk 0:00:08.4]} 38...
g5 {[%clk 0:00:09.1]} 39. Nf7+ {[%clk 0:00:06.7]} 39... Kg8 {[%clk 0:00:09.6]}
40. Rd5 {[%clk 0:00:05]} 40... a3 {[%clk 0:00:09.3]} 41. Rxg5+ {[%clk
0:00:02.9]} 41... Rg6 {[%clk 0:00:09.6]} 42. Nh6+ {[%clk 0:00:03.6]} 42... Kh8
{[%clk 0:00:07.7]} 43. Nf7+ {[%clk 0:00:02.6]} 43... Kg7 {[%clk 0:00:07.4]} 44.
Ne5+ {[%clk 0:00:02.2]} 44... Kf6 {[%clk 0:00:07.1]} 0-1